[Event "ChessKid Cup Div-III 2023"]
[Site "Online"]
[Date "2023.05.24"]
[Round "55.2"]
[White "Sevian, Samuel"]
[Black "Kamsky, Gata"]
[Result "0-1"]
[ECO "B40"]
[WhiteElo "2684"]
[BlackElo "2665"]
[Annotator "TA"]
[PlyCount "102"]
[EventDate "2023.05.21"]
[EventType "k.o."]
[EventCountry "NET"]
[SourceTitle "playchess.com"]
[Source "ChessBase"]
[SourceQuality "1"]
[TimeControl "900+3"]

{[%evp 9,102,28,33,31,35,16,14,14,30,8,25,25,43,28,46,0,0,-61,-60,-53,-60,-51,-47,-58,-67,-61,-56,-58,-56,-60,-19,-49,-13,-72,-17,-28,-37,-85,-85,-154,-132,-136,-150,-140,-122,-270,-194,-274,-211,-215,-205,-231,-198,-208,-208,-197,-207,-193,-189,-230,-212,-294,-300,-293,-293,-291,-484,-383,-8,-78,-78,-77,-77,-390,-152,-108,-108,-590,-584,-1225,-80,-29963,-29968,-29983,-29984,-29984,-29985,-29985,-29986,-29986,-29987,-29987,-29988,-29988,-29989]} 1. e4 {[%emt 0:00:03]} c5 {[%emt 0:00:12]} 2. Nf3 {[%emt 0:00:01]} e6 {[%emt 0:00:01]} 3. d4 {[%emt 0:00:02]} cxd4 {[%emt 0:00:02]} 4. Bg5 {[%emt 0:00:03]} Be7 {[%emt 0:00:17]} 5. Bxe7 {[%emt 0:00:01]} Nxe7 {[%emt 0:00:02]} 6. Qxd4 {[%emt 0:00:01] B40: Sicilian: 2...e6, Unusual lines.} O-O {[%emt 0:00:06]} 7. Nc3 {[%emt 0:00:01]} Nbc6 {[%emt 0:00:18] [#]} 8. Qe3 $146 {[%emt 0:00:03] The position is equal.} ({Predecessor:} 8. Qd6 a6 9. O-O-O b5 10. a3 Ra7 11. Be2 Qb6 12. Rhf1 Rc7 13. Kb1 Bb7 14. Ne5 {1-0 Tay,J (2230)-Nandhidhaa,P (2365) Titled Tuesday intern op 21st April blitz 2020 (2)}) 8... a6 {[%emt 0:00:12]} 9. Bd3 {[%emt 0:00:38]} d5 {[%emt 0:00:18]} 10. exd5 {[%emt 0:00:02]} exd5 {[%emt 0:00:02] ...d4 is the strong threat.} 11. O-O-O {[%emt 0:00:17]} Bg4 {[%emt 0:00:49] [#]} 12. Be4 {[%emt 0:00:02]} d4 $11 {[%emt 0:00:24]} 13. Qg5 {[%emt 0:00:06]} (13. Qf4 $1 $11 Bxf3 14. Qxf3) 13... f5 $1 $15 {[%emt 0:00:29] Strongly threatening ...h6.} 14. Bxc6 {[%emt 0:00:09]} Nxc6 {[%emt 0:00:03]} 15. Qxd8 {[%emt 0:00:01]} Raxd8 {[%emt 0:00:03]} 16. Ne2 {[%emt 0:00:01][%cal Re2d4]} Bxf3 {[%emt 0:00:02]} 17. gxf3 {[%emt 0:00:01]} Rfe8 {[%emt 0:00:07]} 18. Ng3 {[%emt 0:00:58]} g6 {[%emt 0:00:07][%cal Od4d3]} 19. f4 $1 {[%emt 0:00:09]} Rd5 {[%emt 0:01:58]} 20. a3 {[%emt 0:00:05]} Rc8 {[%emt 0:00:26]} 21. Kb1 {[%emt 0:00:10]} (21. Ne2 $11 {remains equal.}) 21... Nd8 {[%emt 0:00:12]} (21... d3 $1 $17 22. Rxd3 Rxd3 23. cxd3 Nd4) 22. Rhe1 {[%emt 0:00:03]} Kf7 {[%emt 0:00:02]} 23. Re5 {[%emt 0:00:07] Prevents Ne6} (23. Ne2 $15) 23... Rd6 $17 {[%emt 0:00:43]} 24. h4 {[%emt 0:00:13]} (24. Re3 $142) 24... Ne6 {[%emt 0:00:03]} 25. Ne2 {[%emt 0:00:02]} Kf6 {[%emt 0:00:01][%cal Oe6f4] Hoping for ...Nxf4!} 26. Ra5 {[%emt 0:00:10]} Rcd8 {[%emt 0:00:25]} 27. Ra4 {[%emt 0:00:14]} (27. b4 $17) 27... d3 {[%emt 0:00:23]} 28. cxd3 {[%emt 0:00:04]} (28. Rxd3 $142 Rxd3 29. cxd3) 28... Rxd3 {[%emt 0:00:01]} 29. Rxd3 {[%emt 0:00:00]} Rxd3 $19 {[%emt 0:00:02][%mdl 4096] Endgame KRN-KRN} 30. Rb4 {[%emt 0:00:00]} Rd2 {[%emt 0:00:12]} 31. Nc3 {[%emt 0:00:02]} b5 {[%emt 0:00:18] White must now prevent ...Nd4.} ({Stronger than} 31... Rxf2 32. Nd5+ Kg7 33. Rxb7+ Kf8 34. Rb8+ Kg7 35. Rb7+ Kf8 36. Rb8+ Kg7 37. Rb7+ $11) 32. a4 {[%emt 0:00:01]} Rxf2 {[%emt 0:00:26]} 33. axb5 {[%emt 0:00:03]} axb5 {[%emt 0:00:02]} (33... Nxf4 $2 34. bxa6 Rf1+ 35. Ka2 $18) 34. Nd5+ {[%emt 0:00:01]} Kf7 {[%emt 0:00:30]} 35. Rxb5 {[%emt 0:00:02]} Nxf4 {[%emt 0:00:03]} 36. Rb7+ {[%emt 0:00:01]} Ke6 {[%emt 0:00:02]} 37. Nxf4+ {[%emt 0:00:01]} Rxf4 {[%emt 0:00:01]} 38. Rxh7 {[%emt 0:00:00] KR-KR} Rf2 {[%emt 0:00:20]} ({Better is} 38... Rc4 $1 $19 {...f4 would be deadly.} 39. Rh6 Kf6) 39. Rh6 {[%emt 0:06:43]} (39. Kc1 $11) 39... Kf7 $1 $17 {[%emt 0:00:18] ( -> ...Kg7). Black is more active.} 40. Rh7+ {[%emt 0:00:01]} Kf6 {[%emt 0:00:07] aiming for ...f4.} 41. Rc7 $2 {[%emt 0:00:01][%mdl 8192] [#]} (41. Kc1 $17 {was the crucial defense.}) 41... f4 $2 {[%emt 0:01:08]} (41... Rf4 $1 $19 42. Rh7 Rc4) 42. Rc2 {[%emt 0:00:02] [#]} Rf3 {[%emt 0:00:30]} 43. Rc6+ $2 {[%emt 0:00:02][%mdl 8192]} (43. Kc1 $17) 43... Kf5 $19 {[%emt 0:01:06]} 44. Rc5+ {[%emt 0:00:06]} Ke4 $2 {[%emt 0:00:02]} (44... Kg4 $19 {[%cal Of3e3] is more deadly. Threatens to win with ...Re3!} 45. Rg5+ Kxh4 46. Rxg6 Re3) 45. Rg5 $2 {[%emt 0:00:01][%mdl 8192]} (45. Rc6 $17) 45... Rg3 {[%emt 0:00:30] Black mates.} 46. Kc2 {[%emt 0:00:04]} Rxg5 {[%emt 0:00:11]} 47. hxg5 {[%emt 0:00:00]} Ke3 {[%emt 0:00:10]} ({Not} 47... Kf5 48. b4 Kg4 49. b5 $17) 48. Kd1 {[%emt 0:00:01]} Kf2 {[%emt 0:00:07]} 49. b4 {[%emt 0:00:01]} f3 {[%emt 0:00:00][%cal Bf4f3,Bf3f2][%mdl 32]} 50. b5 {[%emt 0:00:01]} Kg2 {[%emt 0:00:03]} 51. b6 {[%emt 0:00:00]} f2 {[%emt 0:00:00] Weighted Error Value: White=0.62/Black=0.47} 0-1

[Event "ChessKid Cup Div-III 2023"]
[Site "Online"]
[Date "2023.05.24"]
[Round "55.2"]
[White "Navara, David"]
[Black "Donchenko, Alexander"]
[Result "1-0"]
[ECO "B13"]
[WhiteElo "2678"]
[BlackElo "2669"]
[Annotator "TA"]
[PlyCount "95"]
[EventDate "2023.05.21"]
[EventType "k.o."]
[EventCountry "NET"]
[SourceTitle "playchess.com"]
[Source "ChessBase"]
[SourceQuality "1"]
[TimeControl "900+3"]

{[%evp 11,95,9,12,14,18,22,25,28,25,39,62,72,72,75,74,70,76,62,71,76,95,100,87,0,146,145,139,151,162,160,139,139,228,232,233,233,280,275,695,712,1008,964,1032,916,919,859,1212,1183,1277,1360,1306,1291,1358,1356,1163,722,718,859,859,856,851,822,1003,959,1272,1241,1213,1162,1211,868,1187,612,29985,29986,29989,29989,29993,29993,29993,29994,29994,29995,29995,29996,29996,1578]} 1. e4 {[%emt 0:00:03]} c6 {[%emt 0:00:06]} 2. d4 {[%emt 0:00:05]} d5 {[%emt 0:00:01]} 3. exd5 {[%emt 0:00:00]} cxd5 {[%emt 0:00:01]} 4. Bd3 {[%emt 0:00:00]} Nf6 {[%emt 0:00:03]} 5. c3 {[%emt 0:00:03]} Bg4 {[%emt 0:00:02]} 6. Qb3 {[%emt 0:00:07]} Qc7 {[%emt 0:00:02]} 7. h3 {[%emt 0:01:40] B13: Caro-Kann: Exchange Variation and Panov-Botvinnik Attack.} Bh5 {[%emt 0:00:23]} 8. g4 {[%emt 0:00:04]} Bg6 {[%emt 0:00:04]} 9. Bxg6 {[%emt 0:00:00] White has an edge.} hxg6 {[%emt 0:00:01]} 10. g5 $1 {[%emt 0:00:00]} Nh5 {[%emt 0:00:20]} 11. Qxd5 {[%emt 0:00:00]} e6 {[%emt 0:00:06]} 12. Qe4 $36 {[%emt 0:00:07][%mdl 2048] Keeping Black busy.} Bd6 {[%emt 0:00:23] [#]} 13. Be3 $146 {[%emt 0:00:52]} ({Predecessor:} 13. Ne2 Nd7 14. Be3 Nb6 15. Nd2 Nd5 16. O-O-O Rc8 17. Kb1 b5 18. Nb3 a5 19. Nc5 Bxc5 20. dxc5 Nxe3 21. Qxe3 Qxc5 {½-½ Aditya,V (2249)-Nandhidhaa,P (2358) Sitges Sunway op 9th 2022 (9)}) 13... O-O {[%emt 0:00:24]} 14. Nd2 {[%emt 0:00:24]} Nd7 {[%emt 0:00:33]} 15. Ne2 {[%emt 0:00:21]} e5 {[%emt 0:00:17]} 16. O-O-O {[%emt 0:00:30]} Rfe8 {[%emt 0:00:22]} 17. Nf3 {[%emt 0:00:23]} (17. Qd5 $16) 17... Nf4 {[%emt 0:00:57] White leaves nothing to chance now.} (17... Qc4 $1 $11 18. Qc2 (18. Qxb7 $2 Rab8 $19) 18... Qxa2) 18. Bxf4 $16 {[%emt 0:00:52]} exf4 {[%emt 0:00:01]} 19. Qd3 {[%emt 0:00:01]} b5 {[%emt 0:00:08]} 20. h4 {[%emt 0:00:24][%cal Bh3h4,Bh4h5][%mdl 32]} (20. Qxb5 Rab8 21. Qd3 (21. Qa6 Nb6 $15) 21... Nb6 $15) 20... Nb6 {[%emt 0:02:06]} 21. Kb1 {[%emt 0:01:24]} (21. Qxb5 $2 Nc4 22. Ne5 Bxe5 $19) 21... Rab8 {[%emt 0:01:28]} (21... b4 $16) 22. h5 $18 {[%emt 0:01:10]} (22. Qxb5 $2 Nc4 $19) 22... Qc4 {[%emt 0:00:18]} 23. Nc1 {[%emt 0:00:23]} b4 {[%emt 0:03:01] [#]} 24. cxb4 {[%emt 0:00:59]} (24. hxg6 $6 Qxd3+ 25. Rxd3 (25. Nxd3 bxc3 26. gxf7+ Kxf7 $16) 25... fxg6 26. cxb4 Bxb4 $16) 24... Qxb4 $2 {[%emt 0:03:31]} (24... gxh5 25. Rxh5 g6) 25. hxg6 {[%emt 0:00:05]} fxg6 {[%emt 0:00:05]} 26. Qxg6 {[%emt 0:01:05] White wants to mate with Rh7.} (26. a3 Qa5 27. Ka1 (27. Qxg6 Nc4 $18) 27... Qf5 28. Qxf5 gxf5 $16) 26... Nc4 {[%emt 0:00:04]} 27. Qh7+ {[%emt 0:00:06]} (27. Nd3 Na3+ 28. Ka1 Nc2+ 29. Kb1 Na3+ 30. Ka1 Nc2+ 31. Kb1 Na3+ $11) 27... Kf8 {[%emt 0:00:01]} 28. Qf5+ {[%emt 0:00:01]} Ke7 {[%emt 0:00:08]} 29. Rde1+ {[%emt 0:00:42]} (29. Nd3 Na3+ 30. Ka1 Nc2+ 31. Kb1 Na3+ 32. Ka1 Nc2+ 33. Kb1 Na3+ $11) 29... Kd8 {[%emt 0:00:13]} 30. Rxe8+ {[%emt 0:00:00]} Kxe8 {[%emt 0:00:00]} 31. Nb3 {[%emt 0:01:35]} (31. Nd3 Na3+ 32. Ka1 Nc2+ 33. Kb1 Na3+ 34. Kc1 (34. Ka1 Nc2+ 35. Kb1 Na3+ $11) 34... Qc4+ 35. Kd2 Qc2+ 36. Ke1 Qb1+ 37. Ke2 Rxb2+ 38. Nd2 Rxd2+ 39. Kxd2 Qxh1 $11) 31... Qb5 {[%emt 0:00:45]} 32. Qe6+ {[%emt 0:01:15]} Kd8 {[%emt 0:00:02]} 33. Rc1 {[%emt 0:00:37]} Rc8 {[%emt 0:00:16] [#]} 34. Rxc4 $1 {[%emt 0:00:14][%mdl 64] Remove Defender} Qxc4 {[%emt 0:00:01]} 35. Qxd6+ {[%emt 0:00:01]} Ke8 {[%emt 0:00:00]} 36. Qe5+ {[%emt 0:00:22]} (36. Qxf4 {leads to mate.} Qd3+ 37. Ka1 Qd1+) 36... Kf8 {[%emt 0:00:01]} 37. Qf5+ {[%emt 0:00:05]} Kg8 {[%emt 0:00:03]} 38. Nfd2 {[%emt 0:00:00]} (38. Qxf4 {is a self mate.} Qd3+ 39. Ka1 Qd1+) 38... Qc6 {[%emt 0:00:09]} 39. d5 {[%emt 0:00:20]} (39. Qxf4 $2 {loses.} Qh1+ $19) 39... Qc7 {[%emt 0:00:13]} 40. a3 {[%emt 0:00:18] Hoping for g6.} Re8 {[%emt 0:00:10]} 41. Ka2 {[%emt 0:00:04] g6 would be deadly.} Re2 {[%emt 0:00:05]} 42. g6 {[%emt 0:00:06] White mates.} a5 {[%emt 0:00:04]} 43. Ne4 {[%emt 0:00:07]} a4 {[%emt 0:00:08]} 44. Nbc5 {[%emt 0:00:05]} Qb8 {[%emt 0:00:05]} 45. Qe6+ {[%emt 0:00:02]} Kh8 {[%emt 0:00:01]} 46. Qh3+ {[%emt 0:00:01]} Kg8 {[%emt 0:00:01]} 47. Qh7+ {[%emt 0:00:00]} Kf8 {[%emt 0:00:01]} 48. Qh8+ {[%emt 0:00:02] Weighted Error Value: White=0.05 (flawless) /Black=0.54} 1-0

[Event "ChessKid Cup Div-III 2023"]
[Site "Online"]
[Date "2023.05.25"]
[Round "56.1"]
[White "Bernadskiy, Vitaliy"]
[Black "Navara, David"]
[Result "1-0"]
[ECO "B22"]
[WhiteElo "2592"]
[BlackElo "2678"]
[Annotator "TA"]
[PlyCount "89"]
[EventDate "2023.05.21"]
[EventType "k.o."]
[EventCountry "NET"]
[SourceTitle "playchess.com"]
[Source "ChessBase"]
[SourceQuality "1"]
[TimeControl "900+3"]

{[%evp 22,89,7,11,32,-14,8,12,74,57,66,36,54,64,56,60,71,41,118,127,110,22,75,59,66,79,78,10,12,0,21,0,0,0,0,0,18,18,18,10,18,13,18,18,18,2,29,29,29,24,30,2,2,2,84,52,82,82,98,98,98,98,253,254,986,589,29976,29977,29980,29980]} 1. e4 {[%emt 0:00:05]} c5 {[%emt 0:00:05]} 2. Nf3 {[%emt 0:00:01]} e6 {[%emt 0:00:00]} 3. c3 {[%emt 0:00:02]} d5 {[%emt 0:00:08]} 4. exd5 {[%emt 0:00:00]} Qxd5 {[%emt 0:00:00]} 5. d4 {[%emt 0:00:01]} Nf6 {[%emt 0:00:01]} 6. Bd3 {[%emt 0:00:01]} Nc6 {[%emt 0:01:03]} 7. O-O {[%emt 0:00:04]} cxd4 {[%emt 0:00:05]} 8. cxd4 {[%emt 0:00:03]} Be7 {[%emt 0:00:01]} 9. Nc3 {[%emt 0:00:02]} Qd6 {[%emt 0:00:03]} 10. Nb5 {[%emt 0:00:23]} Qd8 {[%emt 0:00:29]} 11. Bf4 {[%emt 0:00:02]} Nd5 {[%emt 0:00:06]} 12. Bg3 {[%emt 0:00:00]} O-O {[%emt 0:00:24] B22: Sicilian: 2 c3.} 13. Re1 $5 {[%emt 0:00:11][%mdl 4] Exploring less charted territory.} (13. Rc1 $14 {might be stronger.}) 13... a6 {[%emt 0:00:50]} 14. Nc3 {[%emt 0:00:03]} Nxc3 {[%emt 0:00:37]} (14... Ncb4 $11) 15. bxc3 $16 {[%emt 0:00:00] [#]} b5 $146 {[%emt 0:00:01][%cal Bb7b5,Bb5b4][%mdl 32]} ({Predecessor:} 15... g6 16. Be4 Bd7 17. Qd2 Rc8 18. h4 Bf6 19. Rac1 b5 20. h5 Na5 21. Ne5 Nc4 22. Nxc4 Rxc4 23. Bd3 Rc8 24. Be5 {½-½ Pierrot,J (2449)-Lafuente,P (2435) ARG-ch 80th Los Polvorines 2005 (4)}) 16. a4 {[%emt 0:00:28]} b4 {[%emt 0:00:13]} 17. c4 {[%emt 0:01:38][%cal Bc3c4,Bc4c5][%mdl 32]} Bf6 {[%emt 0:02:51]} 18. Be4 {[%emt 0:00:03]} Bb7 {[%emt 0:00:08]} 19. c5 {[%emt 0:00:01] White is more active.} Na5 {[%emt 0:01:37]} (19... Ra7 $14) 20. Bxb7 {[%emt 0:02:42]} Nxb7 {[%emt 0:00:00] [#]} 21. a5 {[%emt 0:00:00]} Qd5 {[%emt 0:01:15]} (21... Rc8 $1 $11) 22. Qa4 {[%emt 0:00:02]} Nxc5 {[%emt 0:00:50]} 23. dxc5 {[%emt 0:00:35] Strongly threatening Rac1.} Bxa1 {[%emt 0:00:00] [#]} 24. Rxa1 {[%emt 0:00:01]} ({Better is} 24. Rd1 $1 $16 {[%cal Rd1d5]} Bd4 25. c6 (25. Rxd4 Qxc5 26. Bd6 Qc1+ 27. Rd1 Rfc8 $14)) 24... Qxc5 $11 {[%emt 0:00:04]} 25. Rb1 {[%emt 0:01:07]} Rfd8 {[%emt 0:01:52]} 26. h4 {[%emt 0:00:03]} (26. Rxb4 $2 {is a self mate.} Qc1+) 26... Rd5 {[%emt 0:00:01]} 27. Rxb4 {[%emt 0:00:05]} ({Don't play} 27. Qxb4 Qxb4 28. Rxb4 Rxa5 $17) 27... Qxa5 {[%emt 0:00:01]} 28. Qc6 {[%emt 0:00:09]} Qxb4 {[%emt 0:01:08]} 29. Qxa8+ {[%emt 0:00:02]} Qf8 {[%emt 0:00:00]} 30. Qxa6 {[%emt 0:00:03]} h6 {[%emt 0:00:06]} 31. Kh2 {[%emt 0:00:02]} Qe8 {[%emt 0:00:14]} 32. Ne5 {[%emt 0:00:06]} f6 {[%emt 0:00:04]} 33. Nc4 {[%emt 0:00:09]} e5 {[%emt 0:00:24]} 34. Ne3 {[%emt 0:00:58]} Rd8 {[%emt 0:00:02]} 35. Nf5 {[%emt 0:00:16]} Qd7 {[%emt 0:00:15]} 36. Qc4+ {[%emt 0:00:08]} Kh7 $1 {[%emt 0:00:10]} 37. Qe4 {[%emt 0:00:13]} Kh8 {[%emt 0:01:12]} (37... g6 $11 {remains equal.} 38. Ne3 h5) 38. h5 {[%emt 0:00:09]} Qf7 {[%emt 0:00:21]} 39. Qg4 {[%emt 0:00:02]} Qd7 {[%emt 0:00:01]} 40. f3 {[%emt 0:00:16]} Ra8 {[%emt 0:00:06]} 41. Qg6 {[%emt 0:01:19][%cal Of5h6] Hoping for Nxh6!} Ra7 $2 {[%emt 0:00:05] Black cannot hold the game after this.} (41... Rf8 $16 {is a better defense.} 42. Bf2 Qf7) 42. Bf2 $18 {[%emt 0:00:38]} Ra4 {[%emt 0:00:09] [#]} (42... Rc7 43. Nxh6 Qe6) 43. Nxg7 $1 {[%emt 0:00:16][%mdl 576] Deflection} Ra2 {[%emt 0:00:07]} (43... Rf4 44. Ne8) 44. Ne8 {[%emt 0:00:29]} Rxf2 {[%emt 0:00:03]} 45. Nxf6 {[%emt 0:00:05] Weighted Error Value: White=0.31/Black=0.40} 1-0

[Event "ChessKid Cup Div-III 2023"]
[Site "Online"]
[Date "2023.05.25"]
[Round "56.1"]
[White "Lazavik, Denis"]
[Black "Kamsky, Gata"]
[Result "1-0"]
[ECO "E16"]
[WhiteElo "2544"]
[BlackElo "2665"]
[Annotator "TA"]
[PlyCount "111"]
[EventDate "2023.05.21"]
[EventType "k.o."]
[EventCountry "NET"]
[SourceTitle "playchess.com"]
[Source "ChessBase"]
[SourceQuality "1"]
[TimeControl "900+3"]

{[%evp 15,111,31,45,39,47,42,37,28,48,45,61,66,65,62,84,84,89,86,95,92,99,105,96,102,129,121,118,106,94,74,108,103,106,88,95,72,72,79,66,85,72,70,53,48,39,37,51,48,49,43,33,35,35,34,62,78,79,78,79,78,106,102,179,195,210,204,314,313,1497,1471,29982,29973,29988,29989,29989,29988,29985,29965,29975,29975,29989,29990,29990,29991,29991,29992,29992,29993,29993,29994,29994,29995,29995,29996,29996,29996,29996,1883]} 1. d4 {[%emt 0:00:04]} Nf6 {[%emt 0:00:09]} 2. c4 {[%emt 0:00:04]} e6 {[%emt 0:00:03]} 3. Nf3 {[%emt 0:00:04]} b6 {[%emt 0:00:16]} 4. g3 {[%emt 0:00:01]} Bb7 {[%emt 0:00:47]} 5. Bg2 {[%emt 0:00:03]} Bb4+ {[%emt 0:00:07]} 6. Bd2 {[%emt 0:00:01]} Bxd2+ {[%emt 0:00:11]} 7. Qxd2 {[%emt 0:00:02]} d6 {[%emt 0:00:44]} 8. O-O $1 {[%emt 0:00:08][%mdl 4] outshines the older 8.Nc3.} Nbd7 {[%emt 0:00:08]} 9. Qf4 {[%emt 0:00:10] E16: Queen's Indian: 4 g3 Bb7 5 Bg2 Bb4+.} O-O {[%emt 0:00:22]} 10. Nc3 {[%emt 0:00:03]} Re8 {[%emt 0:00:04]} 11. e4 {[%emt 0:00:03] White is slightly better.} e5 {[%emt 0:00:05]} 12. Qe3 {[%emt 0:00:02]} exd4 {[%emt 0:01:23]} 13. Nxd4 {[%emt 0:00:03]} Nc5 {[%emt 0:00:23]} 14. f3 {[%emt 0:00:04]} a5 {[%emt 0:00:44][%cal Od6d5]} 15. Rad1 {[%emt 0:00:45] [#]} g6 $146 {[%emt 0:00:15]} ({Predecessor:} 15... a4 16. Rfe1 g6 17. Ndb5 Qe7 18. Qd4 Ne6 19. Qd2 Nc5 20. Bh3 Qd8 21. Qg5 Re5 {1-0 Yoo,C (2591)-Cordova,E (2544) Los Angeles 1000GM Spring op 2023 (4)}) 16. b3 {[%emt 0:00:19]} Qe7 {[%emt 0:00:53]} 17. Qd2 {[%emt 0:00:19]} Qf8 {[%emt 0:00:48]} 18. Rfe1 {[%emt 0:00:39]} h5 {[%emt 0:00:28]} 19. a3 {[%emt 0:01:17]} Qg7 {[%emt 0:00:22][%cal Oh5h4]} 20. b4 {[%emt 0:00:31]} axb4 {[%emt 0:00:04]} 21. axb4 {[%emt 0:00:00]} Ne6 {[%emt 0:00:07]} 22. Ndb5 {[%emt 0:00:08] Black must now prevent Nd5.} Red8 {[%emt 0:01:53]} 23. f4 {[%emt 0:00:27]} Ne8 {[%emt 0:00:09]} 24. Qe3 {[%emt 0:02:31]} c6 {[%emt 0:00:30]} 25. Nd4 {[%emt 0:00:02]} (25. Qxb6 cxb5 26. Nxb5 Ra2 $17) 25... Nxd4 {[%emt 0:00:01]} 26. Rxd4 {[%emt 0:00:03]} c5 {[%emt 0:00:07]} 27. bxc5 {[%emt 0:00:04]} bxc5 {[%emt 0:00:01]} 28. Rd3 {[%emt 0:00:08][%cal Bd4d3,Bd3d1,Bd1e1][%mdl 32]} Rab8 {[%emt 0:00:39]} 29. Ra1 {[%emt 0:00:42] Repels Ba6} Bc8 {[%emt 0:00:42]} 30. e5 {[%emt 0:00:53]} Bf5 {[%emt 0:00:07]} 31. Rdd1 {[%emt 0:00:02]} dxe5 {[%emt 0:00:11]} 32. fxe5 {[%emt 0:00:04] And now Rxd8 would win.} Nc7 {[%emt 0:00:59]} 33. Nd5 $36 {[%emt 0:00:34][%mdl 2048] White has the initiative.} (33. Rxd8+ Rxd8 34. Nd5 (34. Qxc5 Ne6 $14) 34... Nxd5 35. cxd5 c4 $16) 33... Nxd5 {[%emt 0:00:03]} 34. cxd5 {[%emt 0:00:05]} Re8 {[%emt 0:00:05]} 35. Re1 $1 {[%emt 0:00:07][%cal Oa1a7] White leaves nothing to chance now.} (35. Qxc5 $6 Qxe5 36. Qd4 Qd6 $11) 35... c4 {[%emt 0:00:02]} 36. Ra7 {[%emt 0:00:41][%cal Oe5e6] e6! would be deadly.} Rb3 {[%emt 0:01:00]} 37. Qf4 {[%emt 0:00:06] Threatens to win with e6.} Qf8 {[%emt 0:00:03] Strongly threatening ...Qc5+.} 38. Qxc4 {[%emt 0:00:20]} Rb4 {[%emt 0:00:08] [#]} (38... Qb4 $16 {was necessary.} 39. Qxb4 Rxb4) 39. Qc3 $1 $18 {[%emt 0:00:28] aiming for d6.} Rc8 {[%emt 0:00:05] [#] Wards off d6} 40. Qe3 {[%emt 0:00:02]} Rb2 {[%emt 0:00:34]} (40... Rb5 $142 41. d6 Rcb8) 41. e6 {[%emt 0:00:23]} Rcc2 $2 {[%emt 0:01:01]} (41... fxe6 42. dxe6 Qd6) 42. Bf3 {[%emt 0:00:54][%cal Bg2f3,Bf3d5,Bd5e4,Be4g6][%mdl 32] Active counter play!} fxe6 {[%emt 0:00:18]} 43. dxe6 {[%emt 0:00:02][%cal Bd5e6,Be6e7][%mdl 32] White mates.} Bg4 {[%emt 0:00:03]} 44. e7 {[%emt 0:00:16]} Qe8 {[%emt 0:00:03]} 45. Ra8 {[%emt 0:00:13]} Bc8 {[%emt 0:00:03]} 46. Bd5+ {[%emt 0:00:53]} Kh7 {[%emt 0:00:03]} 47. Be4 {[%emt 0:01:22]} Rd2 {[%emt 0:00:06] [#]} 48. Rxc8 $1 {[%emt 0:00:21][%mdl 512]} Qxc8 {[%emt 0:00:03] [#]} 49. Bxg6+ $1 {[%emt 0:00:00][%mdl 576] Double Attack} Kg7 {[%emt 0:00:01]} 50. Qe5+ {[%emt 0:00:01]} (50. e8=R $2 {perishes.} Rg2+ 51. Kf1 Qc4+ $19) 50... Kh6 {[%emt 0:00:07]} 51. Qxh5+ {[%emt 0:00:02]} (51. e8=B Rg2+ 52. Kh1 Rxh2+ 53. Kg1 Rhg2+ 54. Kh1 Qh3#) 51... Kg7 {[%emt 0:00:01]} 52. Qh7+ {[%emt 0:00:07]} Kf6 {[%emt 0:00:00]} 53. Qf7+ {[%emt 0:00:01]} Kg5 {[%emt 0:00:01]} 54. h4+ {[%emt 0:00:05]} (54. e8=B {is a self mate.} Qc5+ 55. Kf1 Rf2+ 56. Kg1 Rg2+ 57. Kh1 Rxh2#) 54... Kg4 {[%emt 0:00:03]} 55. Qf4+ {[%emt 0:00:00]} (55. e8=B Qc5+ 56. Kf1 Rf2+ 57. Kg1 Rg2+ 58. Kh1 Rh2#) 55... Kh3 {[%emt 0:00:01]} 56. Bf5+ {[%emt 0:00:00] Ingenious play by Lazavik!   Weighted Error Value: White=0.02 (flawless) /Black=0.27 (precise)} (56. e8=B {gets mated.} Rg2+ 57. Kh1 Rh2+ 58. Kg1 Rbg2+ 59. Kf1 Rh1#) 1-0